{"text_format":"1","workbook":"xlsx","n_sheets":5,"sheets":["Info","Antragstammdaten","Tabelle1","Antragsberechtigung","Tooldaten"],"not_rendered":{"charts":0,"images":7,"macros":1,"external_links":0,"defined_names":3,"comments":1,"pivot_tables":0},"unopened":[],"bounds":{"document_bytes":16777216,"sheet_cells":100000,"rows_first":2000,"rows_last":500,"rows_between":2000,"halvings":0,"cell_chars":16384,"cell_head_chars":4096},"cells_cut":0,"cells_raw":0,"read":"whole","date_system":"1900"}

{"sheet":"Info","index":0,"n_rows":24,"n_cols":3,"rows_kept":24,"cut":false,"hidden":false,"merged":[[0,2,0,3],[1,2,1,3],[20,2,21,3],[16,2,16,3],[2,0,2,1],[4,2,6,3],[8,2,10,3],[13,2,15,3],[17,2,18,3]]}
[null,null,{"$f":"Tooldaten!D5","v":"Tool zur Corona-Überbrückungshilfe"}]
[null,null,"https://www.datev.de/info-db/1018037"]
[{"$f":"Tooldaten!D6","v":"V.2.0"}]
[null,{"$f":"\"Über \"&\"\"\"\"&Tooldaten!D5&\"\"\" \"","v":"Über \"Tool zur Corona-Überbrückungshilfe\" "}]
[null,null,"Am 12. Juni 2020 hat die Bundesregierung die Eckpunkte für die „Überbrückungshilfe“ beschlossen. Antragsberechtigt sind Unternehmen, deren Umsatz in den Monaten April und Mai 2020 um durchschnittlich mindestens 60 % gegenüber dem Vergleichszeitraum des Vorjahres gesunken ist. Die Antragsstellung wird von einem vom Antragsteller beauftragten Steuerberater, Wirtschaftsprüfer oder vereidigten Buchprüfer durchgeführt."]
[]
[]
[]
[null,null,"Das Excel-Tool unterstützt Sie bei der Beantragung der Corona-Überbrückungshilfe. Prüfen Sie mit Hilfe der Datei die Antragsvoraussetzungen, und erfassen Sie die Umsatz- und Fixkostenschätzung für die Fördermonate. Profitieren Sie von einer automatischen Berechnung des Fördersatzes und der voraussichtlichen Förderhöhe."]
[]
[]
[null,"Hinweise"]
[null,null,"Zum Zeitpunkt der Programmerstellung lagen noch nicht alle Regelungen zur Überbrückungshilfe vor. "]
[null,null,"Zum tatsächlichen finalen Umfang der antragsrelevanten Angaben (insbes. zur Ermittlung der förderfähigen Fixkosten) und zur Ermittlung des möglichen Förderbetrags beachten Sie daher die Hinweise im InfoDB-Dokument 1018037 „Unterstützung beim Antrag auf Corona-Überbrückungshilfe\"."]
[]
[]
[null,null,"https://www.datev.de/info-db/1018037"]
[null,null,"Dieses Dokument wird regelmäßig an den aktuellen Informationsstand angepasst und kann bei Bedarf auch eventuelle länderspezifische Anforderungen aufgreifen. Die hier dargestellte Berechnung erfolgt insoweit unter Vorbehalt."]
[]
[]
[null,null,"Maßgeblich ist die Berechnung, die der offiziellen Antragstellung im (jeweiligen) Portal, das verwaltungsseitig zur Verfügung gestellt wird, zu Grunde liegt. "]
[]
[null,"Verbundene Unternehmen "]
[null,null,"Für verbundene Unternehmen ist insgesamt nur ein Antrag zu stellen. "]

{"sheet":"Antragstammdaten","index":1,"n_rows":50,"n_cols":3,"rows_kept":50,"cut":false,"hidden":false,"merged":[[2,0,2,1],[0,2,0,3],[1,2,1,3]]}
[null,null,{"$f":"Tooldaten!D5","v":"Tool zur Corona-Überbrückungshilfe"}]
[null,null,"https://www.datev.de/info-db/1018037"]
[{"$f":"Tooldaten!D6","v":"V.2.0"}]
[null,"1. Antragsteller"]
[null,"1.1 Art des Mandats"]
[null,null,"Art des Mandats"]
[]
[null,"1.2. Angaben zum Antragsteller"]
[null,null,"Anrede"]
[null,null,"Titel"]
[null,null,"Vorname"]
[null,null,"Nachname"]
[null,null,"Name des Unternehmens"]
[null,null,"Rechtsform"]
[null,null,"Branche"]
[null,null,"Handelsregisternummer"]
[null,null,"Branchenschlüssel"]
[null,null,"Art des Unternehmens"]
[]
[null,"1.3. Gemeinnützige Übernachtungsstätte"]
[null,null,"Name der Übernachtungsstätte"]
[null,null,"Straße und Hausnummer"]
[null,null,"Postleitzahl"]
[null,null,"Ort"]
[null,null,"Landkreis"]
[null,null,"Bundesland"]
[]
[null,"1.4. Steuer- und Finanzdaten"]
[null,null,"Umsatzsteuer-ID"]
[null,null,"Steuer-Nummer"]
[null,null,"Steuerliche Identifikationsnummer"]
[null,null,"Zuständiges Finanzamt"]
[]
[null,"1.5. Adresse inländischer Sitz der Geschäftsführung"]
[null,null,"Straße und Hausnummer"]
[null,null,"Postleitzahl"]
[null,null,"Ort"]
[null,null,"Landkreis"]
[null,null,"Bundesland"]
[]
[null,"1.6. Kontaktdaten"]
[null,null,"Telefon"]
[null,null,"Fax"]
[null,null,"E-Mail-Adresse"]
[]
[null,"1.7. Beim Finanzamt hinterlegte Kontoverbindung"]
[null,null,"Kontoinhaber"]
[null,null,"IBAN"]
[null,null,"BIC"]
[null,null,"Kreditinstitut"]

{"sheet":"Tabelle1","index":2,"n_rows":41,"n_cols":18,"rows_kept":41,"cut":false,"hidden":false,"merged":[[36,2,36,6],[35,2,35,6],[24,2,24,6],[7,7,7,9],[7,4,7,6],[15,2,15,6],[16,2,16,6],[17,2,17,6],[11,2,11,3],[19,2,19,6],[20,2,20,6],[21,2,21,6],[33,2,33,6],[25,2,25,6],[26,2,26,6],[27,2,27,6],[32,2,32,6],[1,2,1,8],[0,2,0,8],[23,2,23,6],[2,0,2,1],[22,2,22,6]]}
[null,null,{"$f":"Tooldaten!D5","v":"Tool zur Corona-Überbrückungshilfe"},null,null,null,null,null,null,null,null,null,null,"Auf Q53 bis 63 achten"]
[null,null,"https://www.datev.de/info-db/1018037"]
[{"$f":"Tooldaten!D6","v":"V.2.0"}]
[null,"Antragstellung und Prüfung der Antragsberechtigung (bis 31. August 2020)"]
[null,null,null,null,null,null,null,null,null,null,null,null,null,null,null,"bis zu 5",1,"Regelförderung"]
[null,null,null,null,"Beschäftigte zum 29. Februar 2020:","bis zu 5",null,null,null,"max. Förderung für drei Monate: ",{"$f":"IF(Q5=1,Q6,IF(Q5=2,Q7,IF(Q5=3,Q8)))","v":9000},null,null,null,null,"bis zu 10",9000,"Regelförderung (ggfs. gekappt max. mtl. 3.000 €)"]
[null,null,null,null,null,null,null,null,null,null,null,null,null,null,null,"mehr als 10",15000,"Regelförderung (ggfs. gekappt max. mtl. 5.000 €)"]
[null,null,null,null,"Antragsberechtigung",null,null,"Schätzung Förderzeitraum",null,null,"Förderung",null,null,null,null,null,150000,"Regelförderung (ggfs. gekappt max. mtl. 50.000 €)"]
[null,null,null,null,"April","Mai","kumuliert","Juni","Juli","August","Antrag"]
[null,"1. Berechnung der Antragsberechtigung und Umsatzschätzung für den Förderzeitraum"]
[null,null,"Umsätze 2020",null,null,null,{"$f":"SUM(E11:F11)","v":0},null,null,null,{"$f":"SUM(H11:J11)","v":0}]
[null,null,"Umsätze 2019",null,null,null,{"$f":"SUM(E12:F12)","v":0},null,null,null,{"$f":"SUM(H12:J12)","v":0}]
[null,"=","Veränderung in %",null,{"$f":"AbweichungInProzent(E11,E12)","v":0},0,0,0,0,0,0]
[]
[null,"2. Ermittlung erstattungsfähiger Fixkosten"]
[null,"1.","Mieten und Pachten für Gebäude, Grundstücke und Räumlichkeiten, die in unmittelbarem Zusammenhang mit der Geschäftstätigkeit des Unternehmens stehen.\nKosten für Privaträume sind nicht förderfähig.",null,null,null,null,null,null,null,{"$f":"SUM(H16:J16)","v":0}]
[null,"2.","Weitere Mietkosten",null,null,null,null,null,null,null,{"$f":"SUM(H17:J17)","v":0}]
[null,"3.","Zinsaufwendungen für Kredite und Darlehen",null,null,null,null,null,null,null,0]
[null,"4.","Finanzierungskostenanteil von Leasingraten",null,null,null,null,null,null,null,0]
[null,"5.","Ausgaben für notwendige Instandhaltung, Wartung oder Einlagerung von Anlagevermögen oder gemieteten Vermögensgegenständen, einschließlich der EDV ",null,null,null,null,null,null,null,0]
[null,"6.","Ausgaben für Elektrizität, Wasser, Heizung, Reinigung und Hygienemaßnahmen",null,null,null,null,null,null,null,0]
[null,"7.","Grundsteuern",null,null,null,null,null,null,null,0]
[null,"8.","Betriebliche Lizenzgebühren",null,null,null,null,null,null,null,0]
[null,"9.","Versicherungen, Abonnements und andere feste Ausgaben",null,null,null,null,null,null,null,0]
[null,"10.","Kosten für Steuerberater oder Wirtschaftsprüfer, die im Rahmen der Beantragung der Corona-Überbrückungshilfe anfallen",null,null,null,null,null,null,null,0]
[null,"11.","Personalaufwendungen",null,null,null,null,null,null,null,0]
[null,"12.","Kosten für Auszubildende",null,null,null,null,null,null,null,0]
[null,"13.","Um der besonderen Betroffenheit der Reisebüros angemessen Rechnung zu tragen, sind auch Provisionen, die Inhaber von Reisebüros den Reiseveranstaltern aufgrund Corona-bedingter Stornierungen zurückgezahlt haben, den Fixkosten nach Nr. 1 bis 12 gleichgestellt.",null,null,null,null,null,null,null,0]
[null,"= erstattungsfähige Fixkosten",null,null,null,null,null,{"$f":"SUM(H16:H28)","v":0},0,0]
[]
[]
[null,"3. Ermittlung der Förderung"]
[null,null,"Fördersatz (Erstattung der Fixkosten) in %",null,null,null,null,{"$f":"ErstattungInProzent(H13,G13)","v":0},{"$f":"ErstattungInProzent(I13,G13)","v":0},{"$f":"ErstattungInProzent(J13,G13)","v":0}]
[null,null,"rechnerischer Erstattungsbetrag",null,null,null,null,{"$f":"H29*H33/100","v":0},{"$f":"I29*I33/100","v":0},0,{"$f":"SUM(H34:J34)","v":0}]
[null,"=",{"$f":"IF(Q5=1,R6,IF(Q5=2,R7,IF(Q5=3,R8)))","v":"Regelförderung (ggfs. gekappt max. mtl. 3.000 €)"},null,null,null,null,{"$f":"RegelFoerderung(H34,K6)","v":0},{"$f":"RegelFoerderung(I34,K6)","v":0},{"$f":"RegelFoerderung(J34,K6)","v":0},{"$f":"SUM(H35:J35)","v":0}]
[null,null,"nicht berücksichtigte Fixkosten",null,null,null,null,{"$f":"NichtBeruecksichtigteFixkosten(H29,H35,H33)","v":0},{"$f":"NichtBeruecksichtigteFixkosten(I29,I35,I33)","v":0},0]
[null,null,"Erstattungssatz für nicht berücksichtigte Fixkosten in %",null,null,null,null,{"$f":"ErstattungNichtBeruecksichtigteFixkosten(H36,H35,H13,H34)","v":0},{"$f":"ErstattungNichtBeruecksichtigteFixkosten(I36,I35,I13,I34)","v":0},0]
[null,null,"zusätzlicher förderfähiger Betrag",null,null,null,null,{"$f":"H36*(H37/100)","v":0},{"$f":"I36*I37/100","v":0},{"$f":"J36*J37/100","v":0},{"$f":"SUM(H38:J38)","v":0}]
[null,"=","Erstattungsfähige Förderung (ggfs. gekappt max. mtl. 50.000 €)",null,null,null,null,{"$f":"ErstattbareFoerderung(H38,H35)","v":0},{"$f":"ErstattbareFoerderung(I38,I35)","v":0},{"$f":"ErstattbareFoerderung(J38,J35)","v":0},{"$f":"SUM(H39:J39)","v":0}]
[null,"./.","andere anrechenbare Förderungen",null,null,null,null,null,null,null,{"$f":"SUM(H40:J40)","v":0}]
[null,"=","Förderung",null,null,null,null,{"$f":"IF(H39-H40<0,0,H39-H40)","v":0},{"$f":"IF(I39-I40<0,0,I39-I40)","v":0},0,{"$f":"SUM(H41:J41)","v":0}]

{"sheet":"Antragsberechtigung","index":3,"n_rows":19,"n_cols":3,"rows_kept":19,"cut":false,"hidden":false,"merged":[[18,1,18,2]]}
["2. Bestätigung zur Antragsberechtigung"]
["2.1 Erklärung"]
[null,"Der Antragsteller qualifiziert sich nicht für den Wirtschaftsstabilisierungsfonds","Ja"]
[null,"Der Antragsteller ist als Unternehmen dauerhaft wirtschaftlich am Markt tätig","Ja"]
[null,"Bei dem Antragsteller handelt es sich nicht um ein öffentliches Unternehmen","Ja"]
[null,"Der Antragsteller war nicht bereits am 31. Dezember 2019 in Schwierigkeiten","Ja"]
[null,"Der Einnahmenrückgang steht in Zusammenhang mit der Corona-Pandemie","Ja"]
[null,"Es handelt sich beim Antragsteller um einen Soloselbständigen bzw. einen Freiberufler","Ja"]
[null,"Falls zutreffend: Der Antragsteller übt seine selbstständige oder freiberufliche Tätigkeit im Haupterwerb aus","Ja"]
[]
["2.2 Anzahl der Mitarbeiter"]
[null,"Beschäftigte über 30 Stunden und Auszubildende"]
[null,"Beschäftigte bis 30 Stunden"]
[null,"Beschäftigte bis 20 Stunden"]
[null,"Beschäftigte auf 450 Euro-Basis"]
[null,"Gewichtete Summe der Mitarbeiter"]
[]
["2.3 Gründungsdatum"]
[null,"Das Unternehmen wurde vor dem 01.04.2019 gegründet."]

{"sheet":"Tooldaten","index":4,"n_rows":6,"n_cols":5,"rows_kept":6,"cut":false,"hidden":false,"merged":[]}
[]
[]
[]
[]
[null,null,"Tooltitel","Tool zur Corona-Überbrückungshilfe"]
[null,null,"Version","V.2.0","auch bei frmAntragsberechtigung ändern"]